Workbook

Sheet Description
A1: Description and background information
B3: General description and IM clause reference
B5: This model applies the Nelson-Siegel-Svensson (NSS) approach to estimate a debt premium for Gas Distibution Businesses (GDBs) and Gas Transmission Businesses (GTBs) in accordance with clause 2.4.4(6)(d) of the GDB and GTB Input Methodologies (IM). The IM requires us to have regard to the NSS debt premium when estimating the the final debt premium for GDBs and GTBs used in the WACC determination. This model estimates an debt premium based on data on New Zealand government and corporate bonds sourced from Bloomberg. Note: The 'Optimisation' macro in the model uses the Excel solver add-in to optimise the NSS parameters.
B7: Further information
B9: Guidance on the NSS estimation technique is given in the "Input Methodology Review Decisions: Topic Paper 4 - Cost of capital issues" published 20 December 2016 (Link: http://www.comcom.govt.nz/dmsdocument/15113) Attachment D of topic paper 4 outlines the technique and how it can be used to estimate a debt premium.
B11: Bonds used to estimate the debt premium
B13: The 'NSS Estimation' sheet estimates the debt premium for GPBs. The target bond rating is BBB+. The bond sample also includes outer-rated bonds (where available) within one rating, ie, the sample includes BBB, BBB+ and A- rated bonds in the determination of the debt premium.

Sheet NSS Estimation
A1: NSS Estimation Spreadsheet
B3: Bond description (ticker, coupon, maturity date) | C3: Credit rating | D3: Years to maturity (as at averaging month) | E3: Yield | F3: Month | G3: Year | H3: BBB | I3: A- | J3: NSS | K3: NSS adjusted | L3: Residual | M3: BBB+ | N3: BBB | O3: A- | Q3: Five year estimate | T3: NSS Parameter values | V3: Starting values
B4: CENNZ 4.8 05/24/1822017 | C4: BBB | D4: 1.268345401 | E4: 0.01349648456 | F4: 2 | G4: 2017 | H4: =IF($C4="BBB",1,0) -> 1 | I4: =IF($C4="A-",1,0) -> 0 | J4: =(Beta1)+ (Beta2*((1-EXP(-D4/Lambda1))/(D4/Lambda1)))+ (Beta3*((((1-EXP(-D4/Lambda1))/(D4/Lambda1)))- (EXP(-D4/Lambda1))))+ (Beta4*((((1-EXP(-D4/Lambda2))/(D4/Lambda2)))- (EXP(-D4/Lambda2)))) -> 0.01104016391 | K4: =(Beta1)+ (Beta2*((1-EXP(-D4/Lambda1))/(D4/Lambda1)))+ (Beta3*((((1-EXP(-D4/Lambda1))/(D4/Lambda1)))- (EXP(-D4/Lambda1))))+ (Beta4*((((1-EXP(-D4/Lambda2))/(D4/Lambda2)))- (EXP(-D4/Lambda2))))+(H4*Beta5)+(I4*Beta6) -> 0.0126941619 | L4: =IF($E4>0,POWER(E4-K4,2),"") -> 6.437216576e-07 | M4: =IF(H4=1,NA(),IF(OR(I4=1,E4=0),NA(),E4)) ->  | N4: =IF(H4=1,E4,IF(I4=1,NA(),NA())) -> 0.01349648456 | O4: =IF(H4=1,NA(),IF(I4=1,E4,NA())) ->  | Q4: 5 | R4: =(Beta1)+ (Beta2*((1-EXP(-Q4/Lambda1))/(Q4/Lambda1)))+ (Beta3*((((1-EXP(-Q4/Lambda1))/(Q4/Lambda1)))- (EXP(-Q4/Lambda1))))+ (Beta4*((((1-EXP(-Q4/Lambda2))/(Q4/Lambda2)))- (EXP(-Q4/Lambda2)))) -> 0.01651748835 | T4: β1 | U4: -2.106740445 | V4: -1
B5: CENNZ 4.8 05/24/1812017 | C5: BBB | D5: 1.348999924 | E5: 0.01426110546 | F5: 1 | G5: 2017 | H5: =IF($C5="BBB",1,0) -> 1 | I5: 0 | J5: 0.01121939602 | K5: 0.01287339401 | L5: =IF($E5>0,POWER(E5-K5,2),"") -> 1.925743077e-06 | N5: 0.01426110546 | T5: β2 | U5: 2.112372912 | V5: 1
B6: CENNZ 4.8 05/24/18122016 | C6: BBB | D6: 1.437371663 | E6: 0.01417935264 | F6: 12 | G6: 2016 | H6: =IF($C6="BBB",1,0) -> 1 | I6: 0 | J6: 0.01140561335 | K6: 0.01305961133 | L6: =IF($E6>0,POWER(E6-K6,2),"") -> 1.25382059e-06 | N6: 0.01417935264 | Q6: Residual sum of squares | T6: β3 | U6: 2.482735071 | V6: 1.5
B7: CENNZ 4.8 05/24/18112016 | C7: BBB | D7: 1.518636053 | E7: 0.01410392232 | F7: 11 | G7: 2016 | H7: =IF($C7="BBB",1,0) -> 1 | I7: 0 | J7: 0.01156858434 | K7: 0.01322258233 | L7: =IF($E7>0,POWER(E7-K7,2),"") -> 7.767601829e-07 | N7: 0.01410392232 | Q7: =SUM(L4:L354) -> 0.0006781223088 | T7: β4 | U7: 0.009163432552 | V7: 0.03
B8: CENNZ 4.8 05/24/18102016 | C8: BBB | D8: 1.602053388 | E8: 0.01336400486 | F8: 10 | G8: 2016 | H8: 1 | I8: 0 | J8: 0.01172862769 | K8: 0.01338262568 | L8: 3.467348762e-10 | N8: 0.01336400486 | T8: β5 | U8: 0.001653997987 | V8: 0
B9: CENNZ 4.8 05/24/1892016 | C9: BBB | D9: 1.683653786 | E9: 0.01335842344 | F9: 9 | G9: 2016 | H9: 1 | I9: 0 | J9: 0.01187892715 | K9: 0.01353292514 | L9: 3.045084305e-08 | N9: 0.01335842344 | T9: β6 | U9: -0.001622150053 | V9: 0
B10: CENNZ 4.8 05/24/1882016 | C10: BBB | D10: 1.769603904 | E10: 0.01464843943 | F10: 8 | G10: 2016 | H10: 1 | I10: 0 | J10: 0.01203136293 | K10: 0.01368536092 | L10: 9.275202175e-07 | N10: 0.01464843943 | T10: λ1 | U10: 83.75476508 | V10: 100
B11: CENNZ 4.8 05/24/1872016 | C11: BBB | D11: 1.854176852 | E11: 0.01497182395 | F11: 7 | G11: 2016 | H11: 1 | I11: 0 | J11: 0.01217620147 | K11: 0.01383019945 | L11: 1.303306487e-06 | N11: 0.01497182395 | T11: λ2 | U11: 0.819656132 | V11: 0.8
B12: CENNZ 4.8 05/24/1862016 | C12: BBB | D12: 1.935269385 | E12: 0.01435354026 | F12: 6 | G12: 2016 | H12: 1 | I12: 0 | J12: 0.01231087838 | K12: 0.01396487636 | L12: 1.510596211e-07 | N12: 0.01435354026
B13: CENNZ 4.8 05/24/1852016 | C13: BBB | D13: 2.020658329 | E13: 0.01422177473 | F13: 5 | G13: 2016 | H13: 1 | I13: 0 | J13: 0.01244880597 | K13: 0.01410280396 | L13: 1.415404433e-08 | N13: 0.01422177473
B14: MCYNZ 5.029 03/06/1922017 | C14: BBB+ | D14: 2.051370727 | E14: 0.01257957525 | F14: 2 | G14: 2017 | H14: 0 | I14: 0 | J14: 0.01249754039 | K14: 0.01249754039 | L14: 6.729718299e-09 | M14: 0.01257957525
B15: CENNZ 4.8 05/24/1842016 | C15: BBB | D15: 2.1045859 | E15: 0.01424445608 | F15: 4 | G15: 2016 | H15: 1 | I15: 0 | J15: 0.01258098383 | K15: 0.01423498182 | L15: 8.976170807e-11 | N15: 0.01424445608
B16: MCYNZ 5.029 03/06/1912017 | C16: BBB+ | D16: 2.132025249 | E16: 0.0132382217 | F16: 1 | G16: 2017 | H16: 0 | I16: 0 | J16: 0.01262354455 | K16: 0.01262354455 | L16: 3.778279929e-07 | M16: 0.0132382217
B17: CENNZ 4.8 05/24/1832016 | C17: BBB | D17: 2.19028063 | E17: 0.01446518733 | F17: 3 | G17: 2016 | H17: 1 | I17: 0 | J17: 0.0127129319 | K17: 0.01436692989 | L17: 9.654523861e-09 | N17: 0.01446518733
B18: MCYNZ 5.029 03/06/19122016 | C18: BBB+ | D18: 2.220396988 | E18: 0.01312955548 | F18: 12 | G18: 2016 | H18: 0 | I18: 0 | J18: 0.01275865705 | K18: 0.01275865705 | L18: 1.375656466e-07 | M18: 0.01312955548
B19: CENNZ 5.8 05/15/1922017 | C19: BBB | D19: 2.243020282 | E19: 0.01363567835 | F19: 2 | G19: 2017 | H19: 1 | I19: 0 | J19: 0.01279280114 | K19: 0.01444679913 | L19: 6.579169045e-07 | N19: 0.01363567835
B20: MCYNZ 5.029 03/06/19112016 | C20: BBB+ | D20: 2.301661378 | E20: 0.01312668986 | F20: 11 | G20: 2016 | H20: 0 | I20: 0 | J20: 0.01288053791 | K20: 0.01288053791 | L20: 6.059078233e-08 | M20: 0.01312668986
B21: CENNZ 5.8 05/15/1912017 | C21: BBB | D21: 2.323674804 | E21: 0.01457669171 | F21: 1 | G21: 2017 | H21: 1 | I21: 0 | J21: 0.01291320415 | K21: 0.01456720213 | L21: 9.005199703e-11 | N21: 0.01457669171
B22: MCYNZ 5.029 03/06/19102016 | C22: BBB+ | D22: 2.385078713 | E22: 0.01256173189 | F22: 10 | G22: 2016 | H22: 0 | I22: 0 | J22: 0.01300360593 | K22: 0.01300360593 | L22: 1.952526645e-07 | M22: 0.01256173189
B23: CENNZ 5.8 05/15/19122016 | C23: BBB | D23: 2.412046543 | E23: 0.01471516997 | F23: 12 | G23: 2016 | H23: 1 | I23: 0 | J23: 0.01304299619 | K23: 0.01469699418 | L23: 3.303592621e-10 | N23: 0.01471516997
B24: MCYNZ 5.029 03/06/1992016 | C24: BBB+ | D24: 2.466679111 | E24: 0.01230103911 | F24: 9 | G24: 2016 | H24: 0 | I24: 0 | J24: 0.01312225553 | K24: 0.01312225553 | L24: 6.743964091e-07 | M24: 0.01230103911
B25: CENNZ 5.8 05/15/19112016 | C25: BBB | D25: 2.493310933 | E25: 0.01464965618 | F25: 11 | G25: 2016 | H25: 1 | I25: 0 | J25: 0.01316064642 | K25: 0.01481464441 | L25: 2.722111697e-08 | N25: 0.01464965618
B26: MCYNZ 5.029 03/06/1982016 | C26: BBB+ | D26: 2.55262923 | E26: 0.01306522163 | F26: 8 | G26: 2016 | H26: 0 | I26: 0 | J26: 0.01324562292 | K26: 0.01324562292 | L26: 3.25446253e-08 | M26: 0.01306522163
B27: CENNZ 5.8 05/15/19102016 | C27: BBB | D27: 2.576728268 | E27: 0.01370562734 | F27: 10 | G27: 2016 | H27: 1 | I27: 0 | J27: 0.01327994891 | K27: 0.01493394689 | L27: 1.50876893e-06 | N27: 0.01370562734
B28: MCYNZ 5.029 03/06/1972016 | C28: BBB+ | D28: 2.637202177 | E28: 0.01317210842 | F28: 7 | G28: 2016 | H28: 0 | I28: 0 | J28: 0.01336562555 | K28: 0.01336562555 | L28: 3.744887917e-08 | M28: 0.01317210842
B29: CENNZ 5.8 05/15/1992016 | C29: BBB | D29: 2.658328667 | E29: 0.01347137656 | F29: 9 | G29: 2016 | H29: 1 | I29: 0 | J29: 0.01339541074 | K29: 0.01504940872 | L29: 2.490185519e-06 | N29: 0.01347137656
B30: SPKNZ 5 1/4 10/25/1922017 | C30: A- | D30: 2.68928996 | E30: 0.01059445843 | F30: 2 | G30: 2017 | H30: 0 | I30: 1 | J30: 0.01343893397 | K30: 0.01181678392 | L30: 1.4940796e-06 | O30: 0.01059445843
B31: GENEPO 5.205 11/01/1922017 | C31: BBB+ | D31: 2.708454916 | E31: 0.01388463426 | F31: 2 | G31: 2017 | H31: 0 | I31: 0 | J31: 0.01346580192 | K31: 0.01346580192 | L31: 1.754205287e-07 | M31: 0.01388463426
B32: MCYNZ 5.029 03/06/1962016 | C32: BBB+ | D32: 2.71829471 | E32: 0.01293988205 | F32: 6 | G32: 2016 | H32: 0 | I32: 0 | J32: 0.01347957576 | K32: 0.01347957576 | L32: 2.912692999e-07 | M32: 0.01293988205
B33: CENNZ 5.8 05/15/1982016 | C33: BBB | D33: 2.744278785 | E33: 0.0146926448 | F33: 8 | G33: 2016 | H33: 1 | I33: 0 | J33: 0.01351588266 | K33: 0.01516988064 | L33: 2.277540509e-07 | N33: 0.0146926448
B34: SPKNZ 5 1/4 10/25/1912017 | C34: A- | D34: 2.769944482 | E34: 0.01113567738 | F34: 1 | G34: 2017 | H34: 0 | I34: 1 | J34: 0.01355165428 | K34: 0.01192950422 | L34: 6.301610545e-07 | O34: 0.01113567738
B35: GENEPO 5.205 11/01/1912017 | C35: BBB+ | D35: 2.789109438 | E35: 0.01453667116 | F35: 1 | G35: 2017 | H35: 0 | I35: 0 | J35: 0.01357830931 | K35: 0.01357830931 | L35: 9.184574436e-07 | M35: 0.01453667116
B36: MCYNZ 5.029 03/06/1952016 | C36: BBB+ | D36: 2.803683654 | E36: 0.01278492791 | F36: 5 | G36: 2016 | H36: 0 | I36: 0 | J36: 0.01359854843 | K36: 0.01359854843 | L36: 6.619783534e-07 | M36: 0.01278492791
B37: CHRINT 5.15 12/06/1922017 | C37: BBB+ | D37: 2.804279693 | E37: 0.01353094291 | F37: 2 | G37: 2017 | H37: 0 | I37: 0 | J37: 0.01359937559 | K37: 0.01359937559 | L37: 4.683030464e-09 | M37: 0.01353094291
B38: AIANZ 4.73 12/13/1922017 | C38: A- | D38: 2.823444649 | E38: 0.009782593644 | F38: 2 | G38: 2017 | H38: 0 | I38: 1 | J38: 0.01362594895 | K38: 0.0120037989 | L38: 4.933752784e-06 | O38: 0.009782593644
B39: CENNZ 5.8 05/15/1972016 | C39: BBB | D39: 2.828851732 | E39: 0.01501371465 | F39: 7 | G39: 2016 | H39: 1 | I39: 0 | J39: 0.01363343828 | K39: 0.01528743627 | L39: 7.492352409e-08 | N39: 0.01501371465
B40: SPKNZ 5 1/4 10/25/19122016 | C40: A- | D40: 2.858316222 | E40: 0.01106590626 | F40: 12 | G40: 2016 | H40: 0 | I40: 1 | J40: 0.01367419011 | K40: 0.01205204006 | L40: 9.724598626e-07 | O40: 0.01106590626
B41: GENEPO 5.205 11/01/19122016 | C41: BBB+ | D41: 2.877481177 | E41: 0.01432774869 | F41: 12 | G41: 2016 | H41: 0 | I41: 0 | J41: 0.01370064476 | K41: 0.01370064476 | L41: 3.932593438e-07 | M41: 0.01432774869
B42: CHRINT 5.15 12/06/1912017 | C42: BBB+ | D42: 2.884934216 | E42: 0.01389831986 | F42: 1 | G42: 2017 | H42: 0 | I42: 0 | J42: 0.01371092196 | K42: 0.01371092196 | L42: 3.511797076e-08 | M42: 0.01389831986
B43: MCYNZ 5.029 03/06/1942016 | C43: BBB+ | D43: 2.887611225 | E43: 0.01324248833 | F43: 4 | G43: 2016 | H43: 0 | I43: 0 | J43: 0.01371461193 | K43: 0.01371461193 | L43: 2.229006881e-07 | M43: 0.01324248833
B44: AIANZ 4.73 12/13/1912017 | C44: A- | D44: 2.904099171 | E44: 0.01064879079 | F44: 1 | G44: 2017 | H44: 0 | I44: 1 | J44: 0.01373732225 | K44: 0.0121151722 | L44: 2.150274441e-06 | O44: 0.01064879079
B45: CENNZ 5.8 05/15/1962016 | C45: BBB | D45: 2.909944265 | E45: 0.01491733627 | F45: 6 | G45: 2016 | H45: 1 | I45: 0 | J45: 0.0137453665 | K45: 0.01539936449 | L45: 2.323512035e-07 | N45: 0.01491733627
B46: SPKNZ 5 1/4 10/25/19112016 | C46: A- | D46: 2.939580611 | E46: 0.01104903831 | F46: 11 | G46: 2016 | H46: 0 | I46: 1 | J46: 0.01378610079 | K46: 0.01216395074 | L46: 1.243029731e-06 | O46: 0.01104903831
B47: GENEPO 5.205 11/01/19112016 | C47: BBB+ | D47: 2.958745567 | E47: 0.01420606058 | F47: 11 | G47: 2016 | H47: 0 | I47: 0 | J47: 0.01381239731 | K47: 0.01381239731 | L47: 1.549707632e-07 | M47: 0.01420606058
B48: CHRINT 5.15 12/06/19122016 | C48: BBB+ | D48: 2.973305955 | E48: 0.01371926886 | F48: 12 | G48: 2016 | H48: 0 | I48: 0 | J48: 0.01383235302 | K48: 0.01383235302 | L48: 1.27880272e-08 | M48: 0.01371926886
B49: MCYNZ 5.029 03/06/1932016 | C49: BBB+ | D49: 2.973305955 | E49: 0.01387580511 | F49: 3 | G49: 2016 | H49: 0 | I49: 0 | J49: 0.01383235302 | K49: 0.01383235302 | L49: 1.888084654e-09 | M49: 0.01387580511
B50: MCYNZ 8.21 02/11/2022017 | C50: BBB+ | D50: 2.987715696 | E50: 0.01449182853 | F50: 2 | G50: 2017 | H50: 0 | I50: 0 | J50: 0.0138520834 | K50: 0.0138520834 | L50: 4.092738328e-07 | M50: 0.01449182853
B51: AIANZ 4.73 12/13/19122016 | C51: A- | D51: 2.99247091 | E51: 0.01054240779 | F51: 12 | G51: 2016 | H51: 0 | I51: 1 | J51: 0.0138585904 | K51: 0.01223644034 | L51: 2.869746305e-06 | O51: 0.01054240779
B52: CENNZ 5.8 05/15/1952016 | C52: BBB | D52: 2.995333209 | E52: 0.01498268942 | F52: 5 | G52: 2016 | H52: 1 | I52: 0 | J52: 0.01386250619 | K52: 0.01551650418 | L52: 2.84958198e-07 | N52: 0.01498268942
B53: SPKNZ 5 1/4 10/25/19102016 | C53: A- | D53: 3.022997947 | E53: 0.01060392987 | F53: 10 | G53: 2016 | H53: 0 | I53: 1 | J53: 0.01390031705 | K53: 0.01227816699 | L53: 2.803069927e-06 | O53: 0.01060392987
B54: FCGNZ 5.52 02/25/2022017 | C54: A- | D54: 3.026045607 | E54: 0.01399396989 | F54: 2 | G54: 2017 | H54: 0 | I54: 1 | J54: 0.01390447852 | K54: 0.01228232847 | L54: 2.929716356e-06 | O54: 0.01399396989
B55: GENEPO 5.205 11/01/19102016 | C55: BBB+ | D55: 3.042162902 | E55: 0.01359836459 | F55: 10 | G55: 2016 | H55: 0 | I55: 0 | J55: 0.01392647352 | K55: 0.01392647352 | L55: 1.076554706e-07 | M55: 0.01359836459
B56: CHRINT 5.15 12/06/19112016 | C56: BBB+ | D56: 3.054570344 | E56: 0.01350506879 | F56: 11 | G56: 2016 | H56: 0 | I56: 0 | J56: 0.01394339159 | K56: 0.01394339159 | L56: 1.921268799e-07 | M56: 0.01350506879
B57: MCYNZ 8.21 02/11/2012017 | C57: BBB+ | D57: 3.068370218 | E57: 0.01510802236 | F57: 1 | G57: 2017 | H57: 0 | I57: 0 | J57: 0.01396219417 | K57: 0.01396219417 | L57: 1.312922236e-06 | M57: 0.01510802236
B58: AIANZ 4.73 12/13/19112016 | C58: A- | D58: 3.0737353 | E58: 0.01051640148 | F58: 11 | G58: 2016 | H58: 0 | I58: 1 | J58: 0.01396950026 | K58: 0.0123473502 | L58: 3.352373211e-06 | O58: 0.01051640148
B59: CENNZ 5.8 05/15/1942016 | C59: BBB | D59: 3.07926078 | E59: 0.01590238507 | F59: 4 | G59: 2016 | H59: 1 | I59: 0 | J59: 0.01397702249 | K59: 0.01563102048 | L59: 7.363874116e-08 | N59: 0.01590238507
B60: SPKNZ 5 1/4 10/25/1992016 | C60: A- | D60: 3.104598345 | E60: 0.0106071441 | F60: 9 | G60: 2016 | H60: 0 | I60: 1 | J60: 0.01401148745 | K60: 0.01238933739 | L60: 3.176212945e-06 | O60: 0.0106071441
B61: FCGNZ 5.52 02/25/2012017 | C61: A- | D61: 3.106700129 | E61: 0.01536690812 | F61: 1 | G61: 2017 | H61: 0 | I61: 1 | J61: 0.01401434427 | K61: 0.01239219422 | L61: 8.848922814e-06 | O61: 0.01536690812
B62: GENEPO 5.205 11/01/1992016 | C62: BBB+ | D62: 3.1237633 | E62: 0.01340636946 | F62: 9 | G62: 2016 | H62: 0 | I62: 0 | J62: 0.01403752559 | K62: 0.01403752559 | L62: 3.983580556e-07 | M62: 0.01340636946
B63: CHRINT 5.15 12/06/19102016 | C63: BBB+ | D63: 3.13798768 | E63: 0.0128748468 | F63: 10 | G63: 2016 | H63: 0 | I63: 0 | J63: 0.01405683481 | K63: 0.01405683481 | L63: 1.397095674e-06 | M63: 0.0128748468
B64: MCYNZ 8.21 02/11/20122016 | C64: BBB+ | D64: 3.156741958 | E64: 0.01489978608 | F64: 12 | G64: 2016 | H64: 0 | I64: 0 | J64: 0.01408227243 | K64: 0.01408227243 | L64: 6.6832858e-07 | M64: 0.01489978608
B65: AIANZ 4.73 12/13/19102016 | C65: A- | D65: 3.157152635 | E65: 0.009708548878 | F65: 10 | G65: 2016 | H65: 0 | I65: 1 | J65: 0.01408282919 | K65: 0.01246067914 | L65: 7.574220978e-06 | O65: 0.009708548878
B66: CENNZ 5.8 05/15/1932016 | C66: BBB | D66: 3.16495551 | E66: 0.01618634752 | F66: 3 | G66: 2016 | H66: 1 | I66: 0 | J66: 0.0140934057 | K66: 0.01574740369 | L66: 1.926716899e-07 | N66: 0.01618634752
B67: SPKNZ 5 1/4 10/25/1982016 | C67: A- | D67: 3.190548463 | E67: 0.01167803031 | F67: 8 | G67: 2016 | H67: 0 | I67: 1 | J67: 0.01412806871 | K67: 0.01250591866 | L67: 6.85399108e-07 | O67: 0.01167803031
B68: FCGNZ 5.52 02/25/20122016 | C68: A- | D68: 3.195071869 | E68: 0.01531071558 | F68: 12 | G68: 2016 | H68: 0 | I68: =IF($C68="A-",1,0) -> 1 | J68: =(Beta1)+ (Beta2*((1-EXP(-D68/Lambda1))/(D68/Lambda1)))+ (Beta3*((((1-EXP(-D68/Lambda1))/(D68/Lambda1)))- (EXP(-D68/Lambda1))))+ (Beta4*((((1-EXP(-D68/Lambda2))/(D68/Lambda2)))- (EXP(-D68/Lambda2)))) -> 0.01413419094 | K68: =(Beta1)+ (Beta2*((1-EXP(-D68/Lambda1))/(D68/Lambda1)))+ (Beta3*((((1-EXP(-D68/Lambda1))/(D68/Lambda1)))- (EXP(-D68/Lambda1))))+ (Beta4*((((1-EXP(-D68/Lambda2))/(D68/Lambda2)))- (EXP(-D68/Lambda2))))+(H68*Beta5)+(I68*Beta6) -> 0.01251204089 | L68: 7.83258002e-06 | M68: =IF(H68=1,NA(),IF(OR(I68=1,E68=0),NA(),E68)) ->  | N68: =IF(H68=1,E68,IF(I68=1,NA(),NA())) ->  | O68: =IF(H68=1,NA(),IF(I68=1,E68,NA())) -> 0.01531071558
B69: GENEPO 5.205 11/01/1982016 | C69: BBB+ | D69: 3.209713418 | E69: 0.01432819676 | F69: 8 | G69: 2016 | H69: 0 | I69: 0 | J69: 0.01415399908 | K69: 0.01415399908 | L69: 3.034483119e-08 | M69: 0.01432819676
B70: CHRINT 5.15 12/06/1992016 | C70: BBB+ | D70: 3.219588078 | E70: 0.01264577009 | F70: 9 | G70: 2016 | H70: 0 | I70: 0 | J70: 0.01416735098 | K70: 0.01416735098 | L70: 2.315208399e-06 | M70: 0.01264577009
B71: MCYNZ 8.21 02/11/20112016 | C71: BBB+ | D71: 3.238006347 | E71: 0.01497195225 | F71: 11 | G71: 2016 | H71: =IF($C71="BBB",1,0) -> 0 | I71: 0 | J71: 0.01419223976 | K71: 0.01419223976 | L71: =IF($E71>0,POWER(E71-K71,2),"") -> 6.079515635e-07 | M71: 0.01497195225
B72: AIANZ 4.73 12/13/1992016 | C72: A- | D72: 3.238753033 | E72: 0.009492123032 | F72: 9 | G72: 2016 | H72: 0 | I72: 1 | J72: 0.01419324835 | K72: 0.0125710983 | L72: 9.480088702e-06 | O72: 0.009492123032
B73: SPKNZ 5 1/4 10/25/1972016 | C73: A- | D73: 3.275121411 | E73: 0.01165118776 | F73: 7 | G73: 2016 | H73: 0 | I73: 1 | J73: 0.01424233552 | K73: 0.01262018546 | L73: 9.389565537e-07 | O73: 0.01165118776
B74: FCGNZ 5.52 02/25/20112016 | C74: A- | D74: 3.276336258 | E74: 0.01541647821 | F74: 11 | G74: 2016 | H74: 0 | I74: 1 | J74: 0.01424397397 | K74: 0.01262182392 | L74: 7.810092575e-06 | O74: 0.01541647821
B75: CENNZ 5.277 05/27/2022017 | C75: BBB | D75: 3.277927879 | E75: 0.01646759742 | F75: 2 | G75: 2017 | H75: 1 | I75: 0 | J75: 0.01424612046 | K75: 0.01590011845 | L75: 3.220323775e-07 | N75: 0.01646759742
B76: GENEPO 5.205 11/01/1972016 | C76: BBB+ | D76: 3.294286366 | E76: 0.01438491196 | F76: 7 | G76: 2016 | H76: 0 | I76: 0 | J76: 0.01426817403 | K76: 0.01426817403 | L76: 1.362774488e-08 | M76: 0.01438491196
B77: CHRINT 5.15 12/06/1982016 | C77: BBB+ | D77: 3.305538196 | E77: 0.013538989 | F77: 8 | G77: 2016 | H77: 0 | I77: 0 | J77: 0.01428333499 | K77: 0.01428333499 | L77: 5.540509493e-07 | M77: 0.013538989
B78: WIANZ 5.27 06/11/2022017 | C78: BBB+ | D78: 3.318995641 | E78: 0.01580821292 | F78: 2 | G78: 2017 | H78: 0 | I78: 0 | J78: 0.01430145935 | K78: 0.01430145935 | L78: 2.270306346e-06 | M78: 0.01580821292
B79: MCYNZ 8.21 02/11/20102016 | C79: BBB+ | D79: 3.321423682 | E79: 0.01444378665 | F79: 10 | G79: 2016 | H79: 0 | I79: 0 | J79: 0.01430472844 | K79: 0.01430472844 | L79: 1.933718547e-08 | M79: 0.01444378665
B80: AIANZ 4.73 12/13/1982016 | C80: A- | D80: 3.324703152 | E80: 0.01041545847 | F80: 8 | G80: 2016 | H80: 0 | I80: 1 | J80: 0.01430914342 | K80: 0.01268699337 | L80: 5.159870795e-06 | O80: 0.01041545847
B81: GENEPO 8.3 06/23/2022017 | C81: BBB+ | D81: 3.35184985 | E81: 0.0148526607 | F81: 2 | G81: 2017 | H81: 0 | I81: 0 | J81: 0.01434566939 | K81: 0.01434566939 | L81: 2.570401955e-07 | M81: 0.0148526607
B82: SPKNZ 5 1/4 10/25/1962016 | C82: A- | D82: 3.356213943 | E82: 0.01177072246 | F82: 6 | G82: 2016 | H82: 0 | I82: 1 | J82: 0.01435153798 | K82: 0.01272938792 | L82: 9.190394815e-07 | O82: 0.01177072246
B83: CENNZ 5.277 05/27/2012017 | C83: BBB | D83: 3.358582402 | E83: 0.01698988638 | F83: 1 | G83: 2017 | H83: 1 | I83: 0 | J83: 0.01435472257 | K83: 0.01600872056 | L83: 9.626863689e-07 | N83: 0.01698988638
B84: FCGNZ 5.52 02/25/20102016 | C84: A- | D84: 3.359753593 | E84: 0.01492164791 | F84: 10 | G84: 2016 | H84: 0 | I84: 1 | J84: 0.01435629724 | K84: 0.01273414719 | L84: 4.785159423e-06 | O84: 0.01492164791
B85: GENEPO 5.205 11/01/1962016 | C85: BBB+ | D85: 3.375378899 | E85: 0.01418883358 | F85: 6 | G85: 2016 | H85: 0 | I85: 0 | J85: 0.01437729937 | K85: 0.01437729937 | L85: 3.551935476e-08 | M85: 0.01418883358
B86: CHRINT 5.15 12/06/1972016 | C86: BBB+ | D86: 3.390111144 | E86: 0.01335224643 | F86: 7 | G86: 2016 | H86: 0 | I86: 0 | J86: 0.01439709086 | K86: 0.01439709086 | L86: 1.09169988e-06 | M86: 0.01335224643
B87: WIANZ 5.27 06/11/2012017 | C87: BBB+ | D87: 3.399650164 | E87: 0.01588431981 | F87: 1 | G87: 2017 | H87: 0 | I87: 0 | J87: 0.01440990048 | K87: 0.01440990048 | L87: 2.173912355e-06 | M87: 0.01588431981
B88: MCYNZ 8.21 02/11/2092016 | C88: BBB+ | D88: 3.403024081 | E88: 0.01425243143 | F88: 9 | G88: 2016 | H88: 0 | I88: 0 | J88: 0.01441443024 | K88: 0.01441443024 | L88: 2.62436139e-08 | M88: 0.01425243143
B89: AIANZ 4.73 12/13/1972016 | C89: A- | D89: 3.409276099 | E89: 0.01048389109 | F89: 7 | G89: 2016 | H89: 0 | I89: 1 | J89: 0.01442282274 | K89: 0.01280067269 | L89: 5.367476988e-06 | O89: 0.01048389109
B90: GENEPO 8.3 06/23/2012017 | C90: BBB+ | D90: 3.432504373 | E90: 0.01531357407 | F90: 1 | G90: 2017 | H90: 0 | I90: 0 | J90: 0.01445398877 | K90: 0.01445398877 | L90: 7.388868752e-07 | M90: 0.01531357407
B91: FCGNZ 5.52 02/25/2092016 | C91: A- | D91: 3.441353992 | E91: 0.01476888287 | F91: 9 | G91: 2016 | H91: 0 | I91: 1 | J91: 0.01446585652 | K91: 0.01284370646 | L91: 3.706304181e-06 | O91: 0.01476888287
B92: SPKNZ 5 1/4 10/25/1952016 | C92: A- | D92: 3.441602887 | E92: 0.01190218334 | F92: 5 | G92: 2016 | H92: 0 | I92: 1 | J92: 0.01446619025 | K92: 0.0128440402 | L92: 8.870943456e-07 | O92: 0.01190218334
B93: CENNZ 5.277 05/27/20122016 | C93: BBB | D93: 3.446954141 | E93: 0.01685573433 | F93: 12 | G93: 2016 | H93: 1 | I93: 0 | J93: 0.01447336488 | K93: 0.01612736287 | L93: 5.305249799e-07 | N93: 0.01685573433
B94: GENEPO 5.205 11/01/1952016 | C94: BBB+ | D94: 3.460767843 | E94: 0.01401744678 | F94: 5 | G94: 2016 | H94: 0 | I94: 0 | J94: 0.01449187998 | K94: 0.01449187998 | L94: 2.250868558e-07 | M94: 0.01401744678
B95: CHRINT 5.15 12/06/1962016 | C95: BBB+ | D95: 3.471203677 | E95: 0.01328062155 | F95: 6 | G95: 2016 | H95: 0 | I95: 0 | J95: 0.01450586242 | K95: 0.01450586242 | L95: 1.501215188e-06 | M95: 0.01328062155
B96: WIANZ 5.27 06/11/20122016 | C96: BBB+ | D96: 3.488021903 | E96: 0.01586574002 | F96: 12 | G96: 2016 | H96: 0 | I96: 0 | J96: 0.01452838714 | K96: 0.01452838714 | L96: 1.788512714e-06 | M96: 0.01586574002
B97: MCYNZ 8.21 02/11/2082016 | C97: BBB+ | D97: 3.488974199 | E97: 0.01517120192 | F97: 8 | G97: 2016 | H97: 0 | I97: 0 | J97: 0.01452966222 | K97: 0.01452966222 | L97: 4.115731897e-07 | M97: 0.01517120192
B98: AIANZ 4.73 12/13/1962016 | C98: A- | D98: 3.490368632 | E98: 0.01080815279 | F98: 6 | G98: 2016 | H98: 0 | I98: 1 | J98: 0.01453152924 | K98: 0.01290937918 | L98: 4.415152365e-06 | O98: 0.01080815279
B99: GENEPO 8.3 06/23/20122016 | C99: BBB+ | D99: 3.520876112 | E99: 0.01506268315 | F99: 12 | G99: 2016 | H99: 0 | I99: 0 | J99: 0.01457235713 | K99: 0.01457235713 | L99: 2.404196036e-07 | M99: 0.01506268315
B100: SPKNZ 5 1/4 10/25/1942016 | C100: A- | D100: 3.525530459 | E100: 0.0123691823 | F100: 4 | G100: 2016 | H100: 0 | I100: 1 | J100: 0.01457858289 | K100: 0.01295643284 | L100: 3.448631954e-07 | O100: 0.0123691823
B101: FCGNZ 5.52 02/25/2082016 | C101: A- | D101: 3.52730411 | E101: 0.01584416982 | F101: 8 | G101: 2016 | H101: 0 | I101: 1 | J101: 0.01458095516 | K101: 0.0129588051 | L101: 8.325329531e-06 | O101: 0.01584416982
B102: CENNZ 5.277 05/27/20112016 | C102: BBB | D102: 3.52821853 | E102: 0.0166485258 | F102: 11 | G102: 2016 | H102: 1 | I102: 0 | J102: 0.01458217815 | K102: 0.01623617614 | L102: 1.700322421e-07 | N102: 0.0166485258
B103: GENEPO 5.205 11/01/1942016 | C103: BBB+ | D103: 3.544695414 | E103: 0.01404638187 | F103: 4 | G103: 2016 | H103: 0 | I103: 0 | J103: 0.01460420989 | K103: 0.01460420989 | L103: 3.111720994e-07 | M103: 0.01404638187
B104: CHRINT 5.15 12/06/1952016 | C104: BBB+ | D104: 3.55659262 | E104: 0.01338401773 | F104: 5 | G104: 2016 | H104: 0 | I104: 0 | J104: 0.01462011182 | K104: 0.01462011182 | L104: 1.527928596e-06 | M104: 0.01338401773
B105: WIANZ 5.27 06/11/20112016 | C105: BBB+ | D105: 3.569286292 | E105: 0.01551017438 | F105: 11 | G105: 2016 | H105: 0 | I105: 0 | J105: 0.0146370727 | K105: 0.0146370727 | L105: 7.623065446e-07 | M105: 0.01551017438
B106: MCYNZ 8.21 02/11/2072016 | C106: BBB+ | D106: 3.573547146 | E106: 0.01509301426 | F106: 7 | G106: 2016 | H106: 0 | I106: 0 | J106: 0.01464276463 | K106: 0.01464276463 | L106: 2.027247283e-07 | M106: 0.01509301426
B107: AIANZ 4.73 12/13/1952016 | C107: A- | D107: 3.575757576 | E107: 0.01089317935 | F107: 5 | G107: 2016 | H107: 0 | I107: 1 | J107: 0.01464571721 | K107: 0.01302356716 | L107: 4.538552219e-06 | O107: 0.01089317935
B108: GENEPO 8.3 06/23/20112016 | C108: BBB+ | D108: 3.602140502 | E108: 0.01485791836 | F108: 11 | G108: 2016 | H108: 0 | I108: 0 | J108: 0.01468094506 | K108: 0.01468094506 | L108: 3.131954985e-08 | M108: 0.01485791836
B109: SPKNZ 5 1/4 10/25/1932016 | C109: A- | D109: 3.611225188 | E109: 0.01211620295 | F109: 3 | G109: 2016 | H109: 0 | I109: 1 | J109: 0.01469306985 | K109: 0.0130709198 | L109: 9.114842616e-07 | O109: 0.01211620295
B110: CENNZ 5.277 05/27/20102016 | C110: BBB | D110: 3.611635866 | E110: 0.01578622399 | F110: 10 | G110: 2016 | H110: 1 | I110: 0 | J110: 0.01469361789 | K110: 0.01634761588 | L110: 3.151608483e-07 | N110: 0.01578622399
B111: FCGNZ 5.52 02/25/2072016 | C111: A- | D111: 3.611877057 | E111: 0.01618747634 | F111: 7 | G111: 2016 | H111: 0 | I111: 1 | J111: 0.01469393975 | K111: 0.0130717897 | L111: 9.707503214e-06 | O111: 0.01618747634
B112: GENEPO 5.205 11/01/1932016 | C112: BBB+ | D112: 3.630390144 | E112: 0.01579301469 | F112: 3 | G112: 2016 | H112: 0 | I112: 0 | J112: 0.01471863902 | K112: 0.01471863902 | L112: 1.154283076e-06 | M112: 0.01579301469
B113: CHRINT 5.15 12/06/1942016 | C113: BBB+ | D113: 3.640520192 | E113: 0.01384196108 | F113: 4 | G113: 2016 | H113: =IF($C113="BBB",1,0) -> 0 | I113: 0 | J113: 0.0147321492 | K113: 0.0147321492 | L113: 7.924348959e-07 | M113: 0.01384196108
B114: WIANZ 5.27 06/11/20102016 | C114: BBB+ | D114: 3.652703628 | E114: 0.01521204651 | F114: 10 | G114: 2016 | H114: 0 | I114: 0 | J114: 0.01474839346 | K114: 0.01474839346 | L114: 2.149741564e-07 | M114: 0.01521204651
B115: MCYNZ 8.21 02/11/2062016 | C115: BBB+ | D115: 3.654639679 | E115: 0.01488442516 | F115: 6 | G115: 2016 | H115: 0 | I115: 0 | J115: 0.01475097436 | K115: 0.01475097436 | L115: 1.780911741e-08 | M115: 0.01488442516
B116: AIANZ 4.73 12/13/1942016 | C116: A- | D116: 3.659685147 | E116: 0.01098285398 | F116: 4 | G116: 2016 | H116: 0 | I116: 1 | J116: 0.01475769978 | K116: 0.01313554973 | L116: 4.634098965e-06 | O116: 0.01098285398
B117: GENEPO 8.3 06/23/20102016 | C117: BBB+ | D117: 3.685557837 | E117: 0.0141853549 | F117: 10 | G117: 2016 | H117: 0 | I117: 0 | J117: 0.01479217424 | K117: 0.01479217424 | L117: 3.682297183e-07 | M117: 0.0141853549
B118: FCGNZ 5.52 02/25/2062016 | C118: A- | D118: 3.69296959 | E118: 0.01584564975 | F118: 6 | G118: 2016 | H118: 0 | I118: 1 | J118: 0.01480204623 | K118: 0.01317989618 | L118: 7.106242128e-06 | O118: 0.01584564975
B119: CENNZ 5.277 05/27/2092016 | C119: BBB | D119: 3.693236264 | E119: 0.0157186252 | F119: 9 | G119: 2016 | H119: 1 | I119: 0 | J119: 0.01480240139 | K119: 0.01645639938 | L119: 5.443107302e-07 | N119: 0.0157186252
B120: CHRINT 5.15 12/06/1932016 | C120: BBB+ | D120: 3.726214921 | E120: 0.01389121116 | F120: 3 | G120: 2016 | H120: 0 | I120: 0 | J120: 0.01484630581 | K120: 0.01484630581 | L120: 9.122057899e-07 | M120: 0.01389121116
B121: WIANZ 5.27 06/11/2092016 | C121: BBB+ | D121: 3.734304026 | E121: 0.01504931207 | F121: 9 | G121: 2016 | H121: 0 | I121: 0 | J121: 0.01485706971 | K121: 0.01485706971 | L121: 3.695712485e-08 | M121: 0.01504931207
B122: MCYNZ 8.21 02/11/2052016 | C122: BBB+ | D122: 3.740028623 | E122: 0.01472170111 | F122: 5 | G122: 2016 | H122: 0 | I122: 0 | J122: 0.01486468603 | K122: 0.01486468603 | L122: 2.044468706e-08 | M122: 0.01472170111
B123: AIANZ 4.73 12/13/1932016 | C123: A- | D123: 3.745379877 | E123: 0.01124665091 | F123: 3 | G123: 2016 | H123: 0 | I123: 1 | J123: 0.01487180474 | K123: 0.01324965469 | L123: 4.012024122e-06 | O123: 0.01124665091
B124: GENEPO 8.3 06/23/2092016 | C124: BBB+ | D124: 3.767158235 | E124: 0.01398931834 | F124: 9 | G124: 2016 | H124: 0 | I124: 0 | J124: 0.01490076735 | K124: 0.01490076735 | L124: 8.307393008e-07 | M124: 0.01398931834
B125: FCGNZ 5.52 02/25/2052016 | C125: A- | D125: 3.778358534 | E125: 0.01533568776 | F125: 5 | G125: 2016 | H125: 0 | I125: 1 | J125: 0.0149156569 | K125: 0.01329350685 | L125: 4.170502876e-06 | O125: 0.01533568776
B126: CENNZ 5.277 05/27/2082016 | C126: BBB | D126: 3.779186382 | E126: 0.01731683692 | F126: 8 | G126: 2016 | H126: 1 | I126: 0 | J126: 0.01491675728 | K126: 0.01657075527 | L126: 5.566378237e-07 | N126: 0.01731683692
B127: WIANZ 5.27 06/11/2082016 | C127: BBB+ | D127: 3.820254144 | E127: 0.01602987319 | F127: 8 | G127: 2016 | H127: 0 | I127: 0 | J127: 0.01497131983 | K127: 0.01497131983 | L127: 1.120535215e-06 | M127: 0.01602987319
B128: MCYNZ 8.21 02/11/2042016 | C128: BBB+ | D128: 3.823956194 | E128: 0.01468202484 | F128: 4 | G128: 2016 | H128: 0 | I128: 0 | J128: 0.01497623596 | K128: 0.01497623596 | L128: 8.656018384e-08 | M128: 0.01468202484
B129: GENEPO 8.3 06/23/2082016 | C129: BBB+ | D129: 3.853108353 | E129: 0.01504317221 | F129: 8 | G129: 2016 | H129: 0 | I129: 0 | J129: 0.01501493481 | K129: 0.01501493481 | L129: 7.973512255e-10 | M129: 0.01504317221
B130: FCGNZ 5.52 02/25/2042016 | C130: A- | D130: 3.862286105 | E130: 0.01461155069 | F130: 4 | G130: 2016 | H130: 0 | I130: 1 | J130: 0.01502711306 | K130: 0.01340496301 | L130: 1.455853837e-06 | O130: 0.01461155069
B131: CENNZ 5.277 05/27/2072016 | C131: BBB | D131: 3.86375933 | E131: 0.01756339072 | F131: 7 | G131: 2016 | H131: 1 | I131: 0 | J131: 0.01502906771 | K131: 0.0166830657 | L131: 7.749721528e-07 | N131: 0.01756339072
B132: WIANZ 5.27 06/11/2072016 | C132: BBB+ | D132: 3.904827092 | E132: 0.0157603851 | F132: 7 | G132: 2016 | H132: 0 | I132: =IF($C132="A-",1,0) -> 0 | J132: =(Beta1)+ (Beta2*((1-EXP(-D132/Lambda1))/(D132/Lambda1)))+ (Beta3*((((1-EXP(-D132/Lambda1))/(D132/Lambda1)))- (EXP(-D132/Lambda1))))+ (Beta4*((((1-EXP(-D132/Lambda2))/(D132/Lambda2)))- (EXP(-D132/Lambda2)))) -> 0.0150835311 | K132: =(Beta1)+ (Beta2*((1-EXP(-D132/Lambda1))/(D132/Lambda1)))+ (Beta3*((((1-EXP(-D132/Lambda1))/(D132/Lambda1)))- (EXP(-D132/Lambda1))))+ (Beta4*((((1-EXP(-D132/Lambda2))/(D132/Lambda2)))- (EXP(-D132/Lambda2))))+(H132*Beta5)+(I132*Beta6) -> 0.0150835311 | L132: 4.581313294e-07 | M132: =IF(H132=1,NA(),IF(OR(I132=1,E132=0),NA(),E132)) -> 0.0157603851 | N132: =IF(H132=1,E132,IF(I132=1,NA(),NA())) ->  | O132: =IF(H132=1,NA(),IF(I132=1,E132,NA())) -> 
B133: MCYNZ 8.21 02/11/2032016 | C133: BBB+ | D133: 3.909650924 | E133: 0.01570102504 | F133: 3 | G133: 2016 | H133: 0 | I133: 0 | J133: 0.0150899253 | K133: 0.0150899253 | L133: 3.734428993e-07 | M133: 0.01570102504
B134: GENEPO 8.3 06/23/2072016 | C134: BBB+ | D134: 3.937681301 | E134: 0.01490210254 | F134: 7 | G134: 2016 | H134: 0 | I134: 0 | J134: 0.01512706797 | K134: 0.01512706797 | L134: 5.0609446e-08 | M134: 0.01490210254
B135: CENNZ 5.277 05/27/2062016 | C135: BBB | D135: 3.944851863 | E135: 0.01761641837 | F135: 6 | G135: 2016 | H135: =IF($C135="BBB",1,0) -> 1 | I135: 0 | J135: 0.01513656609 | K135: 0.01679056408 | L135: =IF($E135>0,POWER(E135-K135,2),"") -> 6.820353111e-07 | N135: 0.01761641837
B136: FCGNZ 5.52 02/25/2032016 | C136: A- | D136: 3.947980835 | E136: 0.01414575009 | F136: 3 | G136: 2016 | H136: 0 | I136: 1 | J136: 0.01514071028 | K136: 0.01351856023 | L136: 3.933671231e-07 | O136: 0.01414575009
B137: WIANZ 5.27 06/11/2062016 | C137: BBB+ | D137: 3.985919625 | E137: 0.01600006542 | F137: 6 | G137: 2016 | H137: 0 | I137: 0 | J137: 0.01519093719 | K137: 0.01519093719 | L137: 6.546885004e-07 | M137: 0.01600006542
B138: GENEPO 8.3 06/23/2062016 | C138: BBB+ | D138: 4.018773834 | E138: 0.01516480409 | F138: 6 | G138: 2016 | H138: 0 | I138: 0 | J138: 0.01523440078 | K138: 0.01523440078 | L138: 4.843699716e-09 | M138: 0.01516480409
B139: CENNZ 5.277 05/27/2052016 | C139: BBB | D139: 4.030240806 | E139: 0.01768693743 | F139: 5 | G139: 2016 | H139: 1 | I139: 0 | J139: 0.01524956376 | K139: 0.01690356175 | L139: 6.136774518e-07 | N139: 0.01768693743
B140: WIANZ 5.27 06/11/2052016 | C140: BBB+ | D140: 4.071308568 | E140: 0.01593576332 | F140: 5 | G140: 2016 | H140: 0 | I140: 0 | J140: 0.01530383892 | K140: 0.01530383892 | L140: 3.993284453e-07 | M140: 0.01593576332
B141: GENEPO 8.3 06/23/2052016 | C141: BBB+ | D141: 4.104162778 | E141: 0.01516138511 | F141: 5 | G141: 2016 | H141: 0 | I141: 0 | J141: 0.01534722585 | K141: 0.01534722585 | L141: 3.453678004e-08 | M141: 0.01516138511
B142: CENNZ 5.277 05/27/2042016 | C142: BBB | D142: 4.114168378 | E142: 0.01757377385 | F142: 4 | G142: 2016 | H142: 1 | I142: 0 | J142: 0.01536043327 | K142: 0.01701443125 | L142: 3.128641354e-07 | N142: 0.01757377385
B143: WIANZ 5.27 06/11/2042016 | C143: BBB+ | D143: 4.15523614 | E143: 0.01574120941 | F143: 4 | G143: 2016 | H143: 0 | I143: 0 | J143: 0.01541461396 | K143: 0.01541461396 | L143: 1.06664583e-07 | M143: 0.01574120941
B144: GENEPO 8.3 06/23/2042016 | C144: BBB+ | D144: 4.188090349 | E144: 0.01503807919 | F144: 4 | G144: 2016 | H144: 0 | I144: 0 | J144: 0.01545792494 | K144: 0.01545792494 | L144: 1.762704585e-07 | M144: 0.01503807919
B145: CENNZ 5.277 05/27/2032016 | C145: BBB | D145: 4.199863107 | E145: 0.01875493438 | F145: 3 | G145: 2016 | H145: 1 | I145: 0 | J145: 0.0154734374 | K145: 0.01712743539 | L145: 2.648752983e-06 | N145: 0.01875493438
B146: CNUNZ 4.12 05/06/2122017 | C146: BBB | D146: 4.21974855 | E146: 0.01711836085 | F146: 2 | G146: 2017 | H146: 1 | I146: 0 | J146: 0.01549963078 | K146: 0.01715362877 | L146: 1.243825867e-09 | N146: 0.01711836085
B147: WIANZ 5.27 06/11/2032016 | C147: BBB+ | D147: 4.240930869 | E147: 0.01477137934 | F147: 3 | G147: 2016 | H147: 0 | I147: 0 | J147: 0.01552752019 | K147: 0.01552752019 | L147: 5.717489858e-07 | M147: 0.01477137934
B148: WIANZ 6 1/4 05/15/2122017 | C148: BBB+ | D148: 4.244389207 | E148: 0.01662361781 | F148: 2 | G148: 2017 | H148: 0 | I148: 0 | J148: 0.01553207236 | K148: 0.01553207236 | L148: 1.191471471e-06 | M148: 0.01662361781
B149: GENEPO 8.3 06/23/2032016 | C149: BBB+ | D149: 4.273785079 | E149: 0.01621559484 | F149: 3 | G149: 2016 | H149: 0 | I149: 0 | J149: 0.01557075207 | K149: 0.01557075207 | L149: 4.158221937e-07 | M149: 0.01621559484
B150: AIANZ 5.52 05/28/2122017 | C150: A- | D150: 4.279981267 | E150: 0.01206789494 | F150: 2 | G150: 2017 | H150: 0 | I150: 1 | J150: 0.015578902 | K150: 0.01395675194 | L150: 3.567780776e-06 | O150: 0.01206789494
B151: CNUNZ 4.12 05/06/2112017 | C151: BBB | D151: 4.300403072 | E151: 0.01793667684 | F151: 1 | G151: 2017 | H151: 1 | I151: 0 | J151: 0.01560575524 | K151: 0.01725975323 | L151: 4.582255697e-07 | N151: 0.01793667684
B152: WIANZ 6 1/4 05/15/2112017 | C152: BBB+ | D152: 4.32504373 | E152: 0.01682251462 | F152: 1 | G152: 2017 | H152: 0 | I152: 0 | J152: 0.01563813991 | K152: 0.01563813991 | L152: 1.40274345e-06 | M152: 0.01682251462
B153: AIANZ 5.52 05/28/2112017 | C153: A- | D153: 4.36063579 | E153: 0.0128687547 | F153: 1 | G153: 2017 | H153: 0 | I153: 1 | J153: 0.01568488638 | K153: 0.01406273633 | L153: 1.425592143e-06 | O153: 0.0128687547
B154: CNUNZ 4.12 05/06/21122016 | C154: BBB | D154: 4.388774812 | E154: 0.01813287342 | F154: 12 | G154: 2016 | H154: 1 | I154: 0 | J154: 0.01572181748 | K154: 0.01737581547 | L154: 5.731367435e-07 | N154: 0.01813287342
B155: WIANZ 6 1/4 05/15/21122016 | C155: BBB+ | D155: 4.413415469 | E155: 0.01647700023 | F155: 12 | G155: 2016 | H155: 0 | I155: 0 | J155: 0.0157541376 | K155: 0.0157541376 | L155: 5.225303721e-07 | M155: 0.01647700023
B156: AIANZ 5.52 05/28/21122016 | C156: A- | D156: 4.449007529 | E156: 0.01303119317 | F156: 12 | G156: 2016 | H156: 0 | I156: 1 | J156: 0.01580078956 | K156: 0.01417863951 | L156: 1.316633085e-06 | O156: 0.01303119317
B157: CNUNZ 4.12 05/06/21112016 | C157: BBB | D157: 4.470039201 | E157: 0.01875705963 | F157: 11 | G157: 2016 | H157: 1 | I157: 0 | J157: 0.01582833823 | K157: 0.01748233622 | L157: 1.62491978e-06 | N157: 0.01875705963
B158: WIANZ 6 1/4 05/15/21112016 | C158: BBB+ | D158: 4.494679858 | E158: 0.01635303299 | F158: 11 | G158: 2016 | H158: 0 | I158: 0 | J158: 0.01586059657 | K158: 0.01586059657 | L158: 2.424936263e-07 | M158: 0.01635303299
B159: AIANZ 5.52 05/28/21112016 | C159: A- | D159: 4.530271918 | E159: 0.01298288425 | F159: 11 | G159: 2016 | H159: 0 | I159: 1 | J159: 0.01590715789 | K159: 0.01428500784 | L159: 1.695525843e-06 | O159: 0.01298288425
B160: CNUNZ 4.12 05/06/21102016 | C160: BBB | D160: 4.553456537 | E160: 0.01776885359 | F160: 10 | G160: 2016 | H160: 1 | I160: 0 | J160: 0.01593746591 | K160: 0.0175914639 | L160: 3.146710122e-08 | N160: 0.01776885359
B161: WIANZ 6 1/4 05/15/21102016 | C161: BBB+ | D161: 4.578097194 | E161: 0.01588448147 | F161: 10 | G161: 2016 | H161: 0 | I161: 0 | J161: 0.01596965805 | K161: 0.01596965805 | L161: 7.25504982e-09 | M161: 0.01588448147
B162: AIANZ 5.52 05/28/21102016 | C162: A- | D162: 4.613689254 | E162: 0.01183001463 | F162: 10 | G162: 2016 | H162: 0 | I162: 1 | J162: 0.01601612218 | K162: 0.01439397213 | L162: 6.573878079e-06 | O162: 0.01183001463
B163: CHRINT 6 1/4 10/04/2122017 | C163: BBB+ | D163: 4.633164019 | E163: 0.01763042837 | F163: 2 | G163: 2017 | H163: 0 | I163: 0 | J163: 0.0160415277 | K163: 0.0160415277 | L163: 2.524605361e-06 | M163: 0.01763042837
B164: CNUNZ 4.12 05/06/2192016 | C164: BBB | D164: 4.635056935 | E164: 0.01677668848 | F164: 9 | G164: 2016 | H164: 1 | I164: 0 | J164: 0.01604399638 | K164: 0.01769799437 | L164: 8.488045364e-07 | N164: 0.01677668848
B165: WIANZ 6 1/4 05/15/2192016 | C165: BBB+ | D165: 4.659697592 | E165: 0.01574365348 | F165: 9 | G165: 2016 | H165: 0 | I165: 0 | J165: 0.01607612077 | K165: 0.01607612077 | L165: 1.105344971e-07 | M165: 0.01574365348
B166: FCGNZ 4.33 10/20/2122017 | C166: A- | D166: 4.676969631 | E166: 0.01505297395 | F166: 2 | G166: 2017 | H166: 0 | I166: 1 | J166: 0.01609862603 | K166: 0.01447647598 | L166: 3.323499068e-07 | O166: 0.01505297395
B167: AIANZ 5.52 05/28/2192016 | C167: A- | D167: 4.695289652 | E167: 0.01158510433 | F167: 9 | G167: 2016 | H167: 0 | I167: 1 | J167: 0.01612248538 | K167: 0.01450033532 | L167: 8.498571727e-06 | O167: 0.01158510433
B168: CHRINT 6 1/4 10/04/2112017 | C168: BBB+ | D168: 4.713818541 | E168: 0.01738901405 | F168: 1 | G168: 2017 | H168: 0 | I168: 0 | J168: 0.01614660465 | K168: 0.01614660465 | L168: 1.543581112e-06 | M168: 0.01738901405
B169: CNUNZ 4.12 05/06/2182016 | C169: BBB | D169: 4.721007053 | E169: 0.01777573364 | F169: 8 | G169: 2016 | H169: 1 | I169: 0 | J169: 0.01615595872 | K169: 0.01780995671 | L169: 1.171218573e-09 | N169: 0.01777573364
B170: WIANZ 6 1/4 05/15/2182016 | C170: BBB+ | D170: 4.74564771 | E170: 0.01680238518 | F170: 8 | G170: 2016 | H170: 0 | I170: 0 | J170: 0.0161880083 | K170: 0.0161880083 | L170: 3.774589518e-07 | M170: 0.01680238518
B171: CENNZ 4.4 11/15/2122017 | C171: BBB | D171: 4.748153752 | E171: 0.01716263525 | F171: 2 | G171: 2017 | H171: 1 | I171: 0 | J171: 0.01619126663 | K171: 0.01784526461 | L171: 4.65982844e-07 | N171: 0.01716263525
B172: FCGNZ 4.33 10/20/2112017 | C172: A- | D172: 4.757624154 | E172: 0.01548096389 | F172: 1 | G172: 2017 | H172: 0 | I172: 1 | J172: 0.01620357784 | K172: 0.01458142779 | L172: 8.091651984e-07 | O172: 0.01548096389
B173: AIANZ 5.52 05/28/2182016 | C173: A- | D173: 4.78123977 | E173: 0.01272477246 | F173: 8 | G173: 2016 | H173: 0 | I173: 1 | J173: 0.016234263 | K173: 0.01461211295 | L173: 3.562054128e-06 | O173: 0.01272477246
B174: CHRINT 6 1/4 10/04/21122016 | C174: BBB+ | D174: 4.802190281 | E174: 0.0172043384 | F174: 12 | G174: 2016 | H174: 0 | I174: 0 | J174: 0.01626146789 | K174: 0.01626146789 | L174: 8.890047952e-07 | M174: 0.0172043384
B175: CNUNZ 4.12 05/06/2172016 | C175: BBB | D175: 4.805580001 | E175: 0.01797180027 | F175: 7 | G175: 2016 | H175: 1 | I175: 0 | J175: 0.016265868 | K175: 0.01791986598 | L175: 2.697170055e-09 | N175: 0.01797180027
B176: CENNZ 4.4 11/15/2112017 | C176: BBB | D176: 4.828808274 | E176: 0.01769430375 | F176: 1 | G176: 2017 | H176: 1 | I176: 0 | J176: 0.01629600833 | K176: 0.01795000632 | L176: 6.538380046e-08 | N176: 0.01769430375
B177: WIANZ 6 1/4 05/15/2172016 | C177: BBB+ | D177: 4.830220658 | E177: 0.01652507958 | F177: 7 | G177: 2016 | H177: 0 | I177: 0 | J177: 0.01629784033 | K177: 0.01629784033 | L177: 5.163767526e-08 | M177: 0.01652507958
B178: FCGNZ 4.33 10/20/21122016 | C178: A- | D178: 4.845995893 | E178: 0.01559693126 | F178: 12 | G178: 2016 | H178: 0 | I178: 1 | J178: 0.01631829723 | K178: 0.01469614718 | L178: 8.114119635e-07 | O178: 0.01559693126
B179: AIANZ 5.52 05/28/2172016 | C179: A- | D179: 4.865812718 | E179: 0.01252964231 | F179: 7 | G179: 2016 | H179: 0 | I179: 1 | J179: 0.01634398155 | K179: 0.01472183149 | L179: 4.805693432e-06 | O179: 0.01252964231
B180: CHRINT 6 1/4 10/04/21112016 | C180: BBB+ | D180: 4.88345467 | E180: 0.0169335687 | F180: 11 | G180: 2016 | H180: 0 | I180: 0 | J180: 0.01636683416 | K180: 0.01636683416 | L180: 3.211880329e-07 | M180: 0.0169335687
B181: CNUNZ 4.12 05/06/2162016 | C181: BBB | D181: 4.886672533 | E181: 0.0180708948 | F181: 6 | G181: 2016 | H181: 1 | I181: 0 | J181: 0.01637100112 | K181: 0.01802499911 | L181: 2.106414726e-09 | N181: 0.0180708948
B182: WIANZ 6 1/4 05/15/2162016 | C182: BBB+ | D182: 4.911313191 | E182: 0.01690311102 | F182: 6 | G182: 2016 | H182: 0 | I182: 0 | J182: 0.01640289587 | K182: 0.01640289587 | L182: 2.502151984e-07 | M182: 0.01690311102
B183: CENNZ 4.4 11/15/21122016 | C183: BBB | D183: 4.917180014 | E183: 0.01779508805 | F183: 12 | G183: 2016 | H183: 1 | I183: 0 | J183: 0.01641048629 | K183: 0.01806448428 | L183: 7.257432964e-08 | N183: 0.01779508805
B184: FCGNZ 4.33 10/20/21112016 | C184: A- | D184: 4.927260282 | E184: 0.0158936223 | F184: 11 | G184: 2016 | H184: 0 | I184: 1 | J184: 0.01642352479 | K184: 0.01480137474 | L184: 1.193004746e-06 | O184: 0.0158936223
B185: AIANZ 5.52 05/28/2162016 | C185: A- | D185: 4.946905251 | E185: 0.01287321646 | F185: 6 | G185: 2016 | H185: 0 | I185: 1 | J185: 0.01644892312 | K185: 0.01482677306 | L185: 3.81638339e-06 | O185: 0.01287321646
B186: CHRINT 6 1/4 10/04/21102016 | C186: BBB+ | D186: 4.966872005 | E186: 0.01634620877 | F186: 10 | G186: 2016 | H186: 0 | I186: 0 | J186: =(Beta1)+ (Beta2*((1-EXP(-D186/Lambda1))/(D186/Lambda1)))+ (Beta3*((((1-EXP(-D186/Lambda1))/(D186/Lambda1)))- (EXP(-D186/Lambda1))))+ (Beta4*((((1-EXP(-D186/Lambda2))/(D186/Lambda2)))- (EXP(-D186/Lambda2)))) -> 0.01647472135 | K186: =(Beta1)+ (Beta2*((1-EXP(-D186/Lambda1))/(D186/Lambda1)))+ (Beta3*((((1-EXP(-D186/Lambda1))/(D186/Lambda1)))- (EXP(-D186/Lambda1))))+ (Beta4*((((1-EXP(-D186/Lambda2))/(D186/Lambda2)))- (EXP(-D186/Lambda2))))+(H186*Beta5)+(I186*Beta6) -> 0.01647472135 | L186: 1.651548308e-08 | M186: =IF(H186=1,NA(),IF(OR(I186=1,E186=0),NA(),E186)) -> 0.01634620877 | N186: =IF(H186=1,E186,IF(I186=1,NA(),NA())) ->  | O186: =IF(H186=1,NA(),IF(I186=1,E186,NA())) -> 
B187: CNUNZ 4.12 05/06/2152016 | C187: BBB | D187: 4.972061477 | E187: 0.01838399196 | F187: 5 | G187: 2016 | H187: =IF($C187="BBB",1,0) -> 1 | I187: 0 | J187: 0.01648142377 | K187: 0.01813542176 | L187: 6.178714612e-08 | N187: 0.01838399196
B188: WIANZ 6 1/4 05/15/2152016 | C188: BBB+ | D188: 4.996702134 | E188: 0.01706730521 | F188: 5 | G188: 2016 | H188: 0 | I188: 0 | J188: 0.01651323298 | K188: 0.01651323298 | L188: 3.069960387e-07 | M188: 0.01706730521
B189: CENNZ 4.4 11/15/21112016 | C189: BBB | D189: 4.998444403 | E189: 0.01763118933 | F189: 11 | G189: 2016 | H189: 1 | I189: 0 | J189: 0.01651548115 | K189: 0.01816947914 | L189: 2.897559229e-07 | N189: 0.01763118933
B190: FCGNZ 4.33 10/20/21102016 | C190: A- | D190: 5.010677618 | E190: 0.01543185712 | F190: 10 | G190: 2016 | H190: 0 | I190: 1 | J190: 0.01653126298 | K190: 0.01490911293 | L190: 2.732614886e-07 | O190: 0.01543185712
B191: FCGNZ 5.9 02/25/2222017 | C191: A- | D191: 5.027414532 | E191: 0.01757620188 | F191: 2 | G191: 2017 | H191: 0 | I191: 1 | J191: 0.0165528447 | K191: 0.01493069465 | L191: 6.998708507e-06 | O191: 0.01757620188
B192: AIANZ 5.52 05/28/2152016 | C192: A- | D192: 5.032294195 | E192: 0.012924626 | F192: 5 | G192: 2016 | H192: 0 | I192: 1 | J192: 0.01655913463 | K192: 0.01493698458 | L192: 4.049587054e-06 | O192: 0.012924626
B193: CNUNZ 4.12 05/06/2142016 | C193: BBB | D193: 5.038392135 | E193: 0.01889835701 | F193: 4 | G193: 2016 | H193: 1 | I193: 0 | J193: 0.01656699351 | K193: 0.01822099149 | L193: 4.588240452e-07 | N193: 0.01889835701
B194: CHRINT 6 1/4 10/04/2192016 | C194: BBB+ | D194: 5.048472404 | E194: 0.01624349316 | F194: 9 | G194: 2016 | H194: 0 | I194: 0 | J194: 0.01657998121 | K194: 0.01657998121 | L194: 1.132242079e-07 | M194: 0.01624349316
B195: WIANZ 6 1/4 05/15/2142016 | C195: BBB+ | D195: 5.080629706 | E195: 0.01721548042 | F195: 4 | G195: 2016 | H195: 0 | I195: 0 | J195: 0.01662138425 | K195: 0.01662138425 | L195: 3.52950252e-07 | M195: 0.01721548042
B196: CENNZ 4.4 11/15/21102016 | C196: BBB | D196: 5.081861739 | E196: 0.01631210989 | F196: 10 | G196: 2016 | H196: 1 | I196: =IF($C196="A-",1,0) -> 0 | J196: 0.01662296962 | K196: 0.01827696761 | L196: 3.860665845e-06 | N196: 0.01631210989
B197: GENEPO 4.14 03/18/2222017 | C197: BBB+ | D197: 5.084909399 | E197: 0.01655846926 | F197: 2 | G197: 2017 | H197: 0 | I197: 0 | J197: 0.01662689103 | K197: 0.01662689103 | L197: 4.681538011e-09 | M197: 0.01655846926
B198: FCGNZ 4.33 10/20/2192016 | C198: A- | D198: 5.092278016 | E198: 0.01536619094 | F198: 9 | G198: 2016 | H198: 0 | I198: 1 | J198: 0.01663637051 | K198: 0.01501422046 | L198: 1.238832215e-07 | O198: 0.01536619094
B199: SPKNZ 4 1/2 03/25/2222017 | C199: A- | D199: 5.104074354 | E199: 0.01523672054 | F199: 2 | G199: 2017 | H199: =IF($C199="BBB",1,0) -> 0 | I199: 1 | J199: 0.01665154113 | K199: 0.01502939107 | L199: =IF($E199>0,POWER(E199-K199,2),"") -> 4.298550601e-08 | O199: 0.01523672054
B200: FCGNZ 5.9 02/25/2212017 | C200: A- | D200: 5.108069055 | E200: 0.0181182691 | F200: 1 | G200: 2017 | H200: 0 | I200: 1 | J200: 0.0166566771 | K200: 0.01503452704 | L200: 9.509465108e-06 | O200: 0.0181182691
B201: AIANZ 5.52 05/28/2142016 | C201: A- | D201: 5.116221766 | E201: 0.01282907928 | F201: 4 | G201: 2016 | H201: 0 | I201: 1 | J201: 0.0166671568 | K201: 0.01504500674 | L201: 4.910334525e-06 | O201: 0.01282907928
... 153 more rows
